lending/lending_fUSD_20260104
["ID","MTS","AMOUNT","RATE_DAILY","PERIOD"]
[400414235,1767529460979,500.0,0.00016297,2]
[400414236,1767529461011,500.0,0.00016297,2]
[400414237,1767529461045,500.0,0.00016297,2]
[400414238,1767529461076,590.37194812,0.00016297,2]
[400414239,1767529461108,500.0,0.00016297,2]
[400414240,1767529461182,500.0,0.00016297,2]
[400414241,1767529461215,500.0,0.00016297,2]
[400414242,1767529461250,500.0,0.00016297,2]
[400414243,1767529461286,500.0,0.00016297,2]
[400414244,1767529461329,500.0,0.00016297,2]
[400414245,1767529461366,500.0,0.00016297,2]
[400414246,1767529461410,500.0,0.00016297,2]
[400414247,1767529461486,255.25267201,0.00016297,2]
[400414248,1767529461514,244.74732799,0.00016297,2]
[400414249,1767529461550,500.0,0.00016297,2]
[400414250,1767529461586,500.0,0.00016297,2]
[400414251,1767529461639,500.0,0.00016297,2]
[400414252,1767529461697,500.0,0.00016297,2]
[400414253,1767529461747,500.0,0.00016297,2]
[400414254,1767529461848,500.0,0.00016297,2]
[400414255,1767529461905,500.0,0.00016297,2]
[400414256,1767529490965,193.27430886,0.00016297,2]
[400414260,1767529500751,166.66,0.00015791,2]
[400414261,1767529501065,166.66,0.00016123,2]
[400414262,1767529501218,300.0,0.00016297,2]
[400414263,1767529501275,300.0,0.00016297,2]
[400414264,1767529501305,1200.0,0.00016297,2]
[400414266,1767529516064,1179.88132916,0.00016198,2]
[400414267,1767529525270,1026.06254062,0.000108,2]
[400414268,1767529527692,500.0,0.00016297,2]
[400414269,1767529527750,410.98203459,0.00016297,2]
[400414270,1767529529192,811.74245878,0.00016,2]
[400414271,1767529529221,10000.01,0.00016,2]
[400414272,1767529529247,10000.01,0.00016,2]
[400414273,1767529529274,10000.01,0.00016,2]
[400414274,1767529529299,10000.01,0.00016,2]
[400414275,1767529529324,10000.01,0.00016,2]
[400414276,1767529529349,10000.01,0.00016,2]
[400414277,1767529529373,3624.7135109,0.00016,2]
[400414280,1767529560396,6375.2964891,8e-05,2]
[400414281,1767529560422,10000.01,8e-05,2]
[400414282,1767529560446,7163.30976198,8e-05,2]
[400414283,1767529561690,300.0,0.00016297,2]
[400414284,1767529564360,634.24593411,0.00011,2]
[400414285,1767529565511,500.0,0.0004368,30]
[400414286,1767529573569,1422.84,0.00016077,2]
[400414287,1767529576870,2000.0,0.0004368,30]
[400414289,1767529612816,8577.17,0.000162,5]
[400414290,1767529612840,10000.01,0.000162,5]
[400414291,1767529612864,10000.01,0.000162,5]
[400414292,1767529612888,10000.01,0.000162,5]
[400414293,1767529612942,10000.01,0.000162,5]
[400414294,1767529612967,10000.01,0.000162,5]
[400414295,1767529612991,10000.01,0.000162,5]
[400414296,1767529613018,10000.01,0.000162,5]
[400414297,1767529613043,10000.01,0.000162,5]
[400414298,1767529624069,1961.44842889,0.00015,2]
[400414299,1767529656184,-3691.87694429,0.000162,5]
[400414300,1767529656380,-10000.01,0.000162,5]
[400414301,1767529656543,-10000.01,0.000162,5]
[400414302,1767529656718,-1482.65668456,0.000162,5]
[400414303,1767529656750,-301.35835163,0.00016297,2]
[400414304,1767529656786,-500.0,0.00016297,2]
[400414305,1767529656822,-500.0,0.00016297,2]
[400414306,1767529656858,-430.91011705,0.00016297,2]
[400414307,1767529690594,3570.15969352,0.00016198,2]
[400414308,1767529690619,10000.01,0.00016198,2]
[400414309,1767529690645,2336.22260648,0.00016198,2]
[400414312,1767529706824,1156.40036966,0.00015,2]
[400414313,1767529710600,168.57785664,0.00016198,2]
[400414314,1767529714357,510225.56444088,0.0004368,30]
[400414315,1767529715689,6338.80916722,0.00016,4]
[400414316,1767529715713,10000.01,0.00016,4]
[400414317,1767529715736,10000.01,0.00016,4]
[400414318,1767529715759,10000.01,0.00016,4]
[400414319,1767529715781,10000.01,0.00016,4]
[400414320,1767529715804,10000.01,0.00016,4]
[400414321,1767529715827,10000.01,0.00016,4]
[400414322,1767529715850,10000.01,0.00016,4]
[400414323,1767529715878,444.72263583,0.00016,4]
[400414324,1767529716399,10690.05296396,0.00015,2]
[400414325,1767529740752,5185.0364,0.00016198,2]
[400414326,1767529741394,1113.35,7.963e-05,2]
[400414327,1767529741575,1113.35,8.382e-05,2]
[400414328,1767529741776,1113.35,8.801e-05,2]
[400414329,1767529741973,1113.35,9.22e-05,2]
[400414330,1767529742168,361.5736,9.639e-05,2]
[400414331,1767529742192,751.7764,9.639e-05,2]
[400414332,1767529742366,1113.35,0.00010058,2]
[400414333,1767529742560,1113.35,0.00010478,2]
[400414334,1767529742759,1113.35,0.00010897,2]
[400414335,1767529742993,1113.35,0.00011316,2]
[400414336,1767529743193,1113.35,0.00011735,2]
[400414337,1767529743397,1113.35,0.00012154,2]
[400414338,1767529743635,1113.35,0.00012573,2]
[400414339,1767529743832,1113.35,0.00012992,2]
[400414340,1767529744037,341.4336,0.00013411,2]
[400414341,1767529744310,771.9164,0.00013411,2]
[400414342,1767529744347,1113.35,0.0001383,2]
[400414343,1767529744410,1113.35,0.00014249,2]
[400414344,1767529744800,1113.35,0.00014669,2]
[400414345,1767529744991,1113.35,0.00015088,2]
[400414346,1767529745188,1113.35,0.00015507,2]
[400414347,1767529745391,1113.35,0.00015926,2]
[400414348,1767529747012,300.0,0.0001383,2]
[400414349,1767529758383,684.7274,0.00016198,2]
[400414350,1767529801264,300.0,0.00016297,2]
[400414351,1767529801654,1200.0,0.00016297,2]
[400414352,1767529801733,63.2662,0.00016297,2]
[400414353,1767529801758,236.7338,0.00016297,2]
[400414355,1767529807253,9763.2762,0.00016288,2]
[400414356,1767529807277,9165.4238,0.00016288,2]
[400414357,1767529807489,834.5862,0.00016288,2]
[400414358,1767529807513,10000.01,0.00016288,2]
[400414359,1767529807537,8094.1038,0.00016288,2]
[400414360,1767529809520,1905.9062,0.00016198,2]
[400414361,1767529809544,4451.3878,0.00016198,2]
[400414374,1767529831533,-698.15516949,0.00016298,2]
[400414375,1767529831560,-462.91615925,0.00016298,2]
[400414376,1767529831618,-286.29334647,0.00016298,2]
[400414377,1767529831728,-13141.65692207,0.00016298,2]
[400414378,1767529831739,-3466.06911026,0.00016298,2]
[400414379,1767529831784,-924.03708931,0.00016298,2]
[400414383,1767529837641,-1811.16,0.00016298,2]
[400414384,1767529837654,-267.97702398,0.00016298,2]
[400414385,1767529837696,-3234.24970126,0.00016298,2]
[400414386,1767529837753,-2212.97523654,0.00016298,2]
[400414387,1767529837765,-1185.02921204,0.00016298,2]
[400414388,1767529837777,-3137.267809,0.00016298,2]
[400414565,1767529839805,-475.70768933,0.00016298,2]
[400414572,1767529839865,-471.35771324,0.00016298,2]
[400414589,1767529840036,-870683.6907207,0.00016298,2]
[400414591,1767529840046,-1000.0,0.00016298,2]
[400414593,1767529840055,-500.0,0.00016298,2]
[400414594,1767529840066,-226.97311419,0.00016304,2]
[400414597,1767529840077,-300.0,0.00016309,2]
[400414599,1767529840089,-300.0,0.0001632,2]
[400414601,1767529840099,-195.0,0.00016343,2]
[400414603,1767529840114,-300.0,0.00016356,2]
[400414605,1767529840123,-195.0,0.00016431,2]
[400414607,1767529840133,-234.4559451,0.00016438,2]
[400414609,1767529840143,-3877.98,0.00016438,2]
[400414611,1767529840152,-166.66,0.00016456,2]
[400414613,1767529840162,-682.19,0.00016593,2]
[400414615,1767529840172,-42425.43378278,0.000166,2]
[400414617,1767529840181,-9442.8895971,0.00016643,2]
[400414619,1767529840190,-15514.81783149,0.00016731,2]
[400414621,1767529840200,-1179.88132907,0.00016765,2]
[400414623,1767529840210,-166.66,0.00016788,2]
[400414625,1767529840220,-210.0,0.00016825,2]
[400414628,1767529840229,-222.79183718,0.00016859,2]
[400414631,1767529840239,-151.0,0.00016866,2]
[400414634,1767529840248,-263369.1097132,0.00016869,2]
[400414637,1767529840258,-210.0,0.000169,2]
[400414640,1767529840268,-1179.88132907,0.00016954,2]
[400414643,1767529840277,-15664.63,0.00016986,2]
[400414646,1767529840287,-250.0,0.00017,2]
[400414650,1767529840297,-160.0,0.00017,2]
[400414653,1767529840308,-482.22,0.00017041,2]
[400414655,1767529840318,-660.35,0.00017041,2]
[400414657,1767529840328,-210.0,0.00017108,2]
[400414659,1767529840338,-166.66,0.00017121,2]
[400414661,1767529840348,-1179.88132907,0.00017144,2]
[400414663,1767529840357,-466.13,0.00017178,2]
[400414665,1767529840367,-466.13,0.00017178,2]
[400414667,1767529840376,-534.83,0.00017178,2]
[400414669,1767529840386,-463.71,0.00017178,2]
[400414671,1767529840396,-1440.0,0.00017259,2]
[400414673,1767529840406,-1440.0,0.00017282,2]
[400414674,1767529840416,-1184.0,0.00017327,2]
[400414676,1767529840426,-1179.88132907,0.00017333,2]
[400414679,1767529840437,-151.0,0.00017338,2]
[400414681,1767529840447,-1440.0,0.00017342,2]
[400414683,1767529840457,-151.0,0.00017344,2]
[400414685,1767529840472,-151.0,0.00017346,2]
[400414687,1767529840483,-151.0,0.0001737,2]
[400414689,1767529840493,-151.0,0.0001737,2]
[400414691,1767529840504,-151.0,0.00017383,2]
[400414693,1767529840514,-151.0,0.00017383,2]
[400414695,1767529840523,-151.35,0.00017383,2]
[400414697,1767529840533,-1440.0,0.00017397,2]
[400414699,1767529840544,-221.57,0.00017452,2]
[400414701,1767529840554,-166.66,0.00017453,2]
[400414704,1767529840563,-500.0,0.00017482,2]
[400414706,1767529840574,-4084.33358682,0.00017482,2]
[400414708,1767529840588,-1000.0,0.00017511,2]
[400414710,1767529840599,-1000.0,0.00017511,2]
[400414712,1767529840609,-179.978,0.00017511,2]
[400414714,1767529840620,-1179.88132907,0.00017522,2]
[400414716,1767529840630,-917.70497562,0.0001764,2]
[400414718,1767529840639,-195.0,0.00017685,2]
[400414720,1767529840650,-1000.0,0.000177,2]
[400414722,1767529840660,-1179.88132907,0.00017711,2]
[400414724,1767529840670,-600.88665179,0.00017756,2]
[400414726,1767529840680,-1632.3679,0.000178,2]
[400414728,1767529840690,-1000.0,0.000178,2]
[400414730,1767529840699,-420.0,0.00017813,2]
[400414732,1767529840709,-420.0,0.00017813,2]
[400414734,1767529840718,-3499.321,0.0001782,2]
[400414736,1767529840730,-1538.399,0.0001782,2]
[400414738,1767529840740,-2434.0,0.0001782,2]
[400414740,1767529840750,-2480.18092,0.0001782,2]
[400414743,1767529840761,-2480.18092,0.0001782,2]
[400414745,1767529840771,-300.0,0.0001782,2]
[400414747,1767529840780,-2500.0,0.0001782,2]
[400414749,1767529840790,-2480.18092,0.0001783,2]
[400414751,1767529840800,-1184.0,0.00017852,2]
[400414753,1767529840809,-2480.18093,0.0001786,2]
[400414755,1767529840819,-2480.18092,0.0001788,2]
[400414757,1767529840829,-206.57971884,0.0001789,2]
[400414759,1767529840843,-787.555,0.0001789,2]
[400414761,1767529840854,-250.0,0.00017897,2]
[400414763,1767529840863,-9694.1365,0.000179,2]
[400414765,1767529840873,-10000.0,0.000179,2]
[400414767,1767529840883,-1179.88132907,0.000179,2]
[400414770,1767529840893,-1000.0,0.000179,2]
[400414772,1767529840903,-339.67863184,0.000179,2]
[400414774,1767529840912,-1680.0,0.00017902,2]
[400414776,1767529840934,-2480.18092,0.0001791,2]
[400414778,1767529840944,-358.98979335,0.00017928,2]
[400414780,1767529840953,-250.0,0.00017928,2]
[400414782,1767529840963,-2500.0,0.00017928,2]
[400414784,1767529840973,-600.0,0.00017928,2]
[400414786,1767529840982,-600.0,0.00017928,2]
[400414788,1767529840996,-600.0,0.00017928,2]
[400414790,1767529841006,-195.0,0.00017928,2]
[400414792,1767529841015,-300.0,0.00017928,2]
[400414794,1767529841026,-272.35933856,0.00017928,2]
[400414796,1767529841036,-2500.0,0.00017928,2]
[400414797,1767529841050,-600.0,0.00017928,2]
[400414798,1767529841060,-300.0,0.00017928,2]
[400414799,1767529841071,-150.0,0.00017928,2]
[400414800,1767529841083,-193.0,0.00017928,2]
[400414801,1767529841093,-2500.0,0.00017928,2]
[400414802,1767529841103,-198.40981234,0.00017928,2]
[400414803,1767529841112,-630.52047785,0.00017928,2]
[400414804,1767529841122,-195.0,0.00017928,2]
[400414805,1767529841132,-250.0,0.00017928,2]
[400414807,1767529841141,-300.0,0.00017928,2]
[400414809,1767529841151,-300.0,0.00017928,2]
[400414811,1767529841161,-2500.0,0.00017928,2]
[400414813,1767529841171,-300.0,0.00017928,2]
[400414815,1767529841180,-2495.0,0.0001793,2]
[400414817,1767529841190,-550.012,0.0001799,2]
[400414819,1767529841199,-1274.058,0.0001799,2]
[400414821,1767529841208,-913.0,0.0001799,2]
[400414823,1767529841218,-1200.0,0.0001799,2]
[400414825,1767529841227,-689.2,0.0001799,2]
[400414827,1767529841237,-222.79183718,0.0001799,2]
[400414829,1767529841250,-151.0,0.00017997,2]
[400414831,1767529841259,-500.0,0.00017999,2]
[400414833,1767529841269,-666.0,0.00017999,2]
[400414835,1767529841279,-2831720.03656098,0.00018,2]
[400414840,1767529841313,3529.2505,0.00016198,2]
[400414866,1767529843362,-937.70955075,0.0001782,2]
[400414867,1767529843374,-3439.16975584,0.0001782,2]
[400414868,1767529843473,-438.12069341,0.0001782,2]
[400414869,1767529843483,-96.62758724,0.00018,2]
[400414873,1767529844487,-312.07617263,0.00018,2]
[400414877,1767529845711,-116.80772272,0.00018,2]
[400414878,1767529845742,-894.970197,0.00018,2]
[400414879,1767529845754,-1185.219986,0.00018,2]
[400414880,1767529845890,247.6319267,0.00016198,2]
[400414887,1767529853606,500.0,0.00016297,2]
[400414888,1767529853842,500.0,0.00016297,2]
[400414889,1767529854078,500.0,0.00016297,2]
[400414890,1767529856525,271.7397733,0.00016198,2]
[400414891,1767529856557,10000.01,0.00016198,2]
[400414892,1767529856589,10000.01,0.00016198,2]
[400414893,1767529856622,10000.01,0.00016198,2]
[400414894,1767529856654,10000.01,0.00016198,2]
[400414895,1767529856686,10000.01,0.00016198,2]
[400414897,1767529856716,10000.01,0.00016198,2]
[400414899,1767529856743,10000.01,0.00016198,2]
[400414901,1767529856770,10000.01,0.00016198,2]
[400414903,1767529856797,10000.01,0.00016198,2]
[400414905,1767529856823,5486.37909536,0.00016198,2]
[400414907,1767529856852,5411.64009281,0.00016198,2]
[400414909,1767529856877,19311.19113209,0.00016198,2]
[400414911,1767529856904,5353.480006,0.00016198,2]
[400414916,1767529881481,-300.0,0.00016197,2]
[400414917,1767529881516,-300.0,0.00016197,2]
[400414918,1767529881547,-195.0,0.00016197,2]
[400414919,1767529881577,-2500.0,0.00016197,2]
[400414920,1767529881611,-300.0,0.00016198,2]
[400414921,1767529881645,-250.0,0.00016198,2]
[400414922,1767529893412,1455.702,0.00015874,2]
[400414923,1767529893445,171.435,0.00015874,2]
[400414931,1767529902314,682.873,0.00016098,2]
[400414932,1767529902338,1558.439069,0.00016098,2]
[400414933,1767529919013,8441.570931,0.00016197,2]
[400414934,1767529919037,10000.01,0.00016197,2]
[400414935,1767529919062,314.10020108,0.00016197,2]
[400414936,1767529921584,300.0,0.00016197,2]
[400414937,1767529922186,226.97311419,0.00016198,2]
[400414939,1767529929521,2407.319665,0.00016117,2]
[400414940,1767529930838,151.99798005,0.00016098,2]
[400414941,1767529940056,159.94505548,0.0004368,120]
[400414955,1767529960589,500.0,0.00016197,2]
[400414956,1767529960643,496.30386265,0.00016197,2]
[400414957,1767529960795,202.99047013,0.00016197,2]
[400414958,1767529961676,221.89114925,0.00016197,2]
[400414997,1767529967032,200.0,0.00015886,2]
[400414998,1767529979807,500.0,0.00016197,2]
[400415000,1767529979839,501.81860917,0.00016197,2]
[400415001,1767529979877,216.89191973,0.00016197,2]
[400415003,1767529979912,500.0,0.00016197,2]
[400415004,1767529979960,500.0,0.00016197,2]
[400415005,1767529979992,586.55895383,0.00016197,2]
[400415006,1767529980048,500.0,0.00016197,2]
[400415007,1767529980091,500.0,0.00016197,2]
[400415009,1767529980134,500.0,0.00016197,2]
[400415011,1767529980169,500.0,0.00016197,2]
[400415012,1767529980217,500.0,0.00016197,2]
[400415013,1767529980251,500.0,0.00016197,2]
[400415014,1767529980292,500.0,0.00016197,2]
[400415015,1767529980332,500.0,0.00016197,2]
[400415016,1767529980372,500.0,0.00016197,2]
[400415017,1767529980417,571.6018404,0.00016197,2]
[400415018,1767529980465,500.0,0.00016197,2]
[400415019,1767529981610,1.95319484,0.00016197,2]
[400415020,1767529981637,298.04680516,0.00016197,2]
[400415021,1767529982545,300.0,0.00016197,2]
[400415023,1767530101259,300.0,0.00016197,2]
[400415024,1767530101292,300.0,0.00016197,2]
[400415025,1767530101324,1200.0,0.00016197,2]
[400415026,1767530113684,689.2,0.00016198,2]
[400415027,1767530117214,907.99108783,0.00016098,2]
[400415029,1767530161352,300.0,0.00016197,2]
[400415030,1767530166122,151.99798003,0.00016098,2]
[400415031,1767530176137,500.0,0.00016197,2]
[400415032,1767530176194,230.17798227,0.00016197,2]
[400415036,1767530221318,300.0,0.00016197,2]
[400415037,1767530227474,155.32380448,0.00016197,2]
[400415047,1767530280772,465.44089176,0.00016196,2]
[400415048,1767530288570,2488.39124805,0.00016098,2]
[400415049,1767530391328,1413.44020042,0.00016098,2]
[400415050,1767530391353,494.83899248,0.00016098,2]
[400415051,1767530395644,245.57,0.0004368,120]
[400415052,1767530396309,151.99798003,0.00016098,2]
[400415053,1767530401254,1200.0,0.00016197,2]
[400415054,1767530401539,300.0,0.00016197,2]
[400415056,1767530409838,250.0,0.0004368,120]
[400415057,1767530410482,250.0,0.0004368,120]
[400415058,1767530411084,250.0,0.0004368,120]
[400415059,1767530411696,250.0,0.0004368,120]
[400415060,1767530457837,500.0,0.00016197,2]
[400415061,1767530458083,500.0,0.00016197,2]
[400415062,1767530458317,500.0,0.00016197,2]
[400415063,1767530459902,166.8755,0.00016098,2]
[400415064,1767530461410,300.0,0.00016197,2]
[400415065,1767530470468,500.0,0.00016197,2]
[400415066,1767530470864,500.0,0.00016197,2]
[400415067,1767530470955,500.0,0.00016197,2]
[400415068,1767530472066,4386.29752749,0.00016098,2]
[400415069,1767530472090,10000.01,0.00016098,2]
[400415070,1767530472113,10000.01,0.00016098,2]
[400415071,1767530472136,10000.01,0.00016098,2]
[400415072,1767530472160,2866.11307251,0.00016098,2]
[400415073,1767530493457,171.43500513,0.00015874,2]
[400415074,1767530493493,1164.561,0.00015874,2]
[400415076,1767530521897,300.0,0.00016197,2]
[400415077,1767530531427,1000.0,0.00016197,2]
[400415078,1767530541972,2432.9264,0.00016098,2]
[400415080,1767530581315,300.0,0.00016197,2]
[400415081,1767530611650,151.99798003,0.00016098,2]
[400415082,1767530641351,300.0,0.00016197,2]
[400415083,1767530663407,401.3,0.00032877,120]
[400415084,1767530675275,2239.5521232,0.00016098,2]
[400415086,1767530701753,300.0,0.00016197,2]
[400415087,1767530701785,300.0,0.00016197,2]
[400415088,1767530701820,1200.0,0.00016197,2]
[400415089,1767530763222,139.53749164,0.00016197,2]
[400415090,1767530763250,360.46250836,0.00016197,2]
[400415092,1767530805130,-1738.52090684,0.00016198,2]
[400415093,1767530812093,500.0,0.00016197,2]
[400415094,1767530812322,500.0,0.00016197,2]
[400415095,1767530812665,500.0,0.00016197,2]
[400415096,1767530821277,300.0,0.00016197,2]
[400415097,1767530850122,-354.71689509,0.00016198,2]
[400415098,1767530891098,7839.54749164,0.00016098,2]
[400415099,1767530891131,10000.01,0.00016098,2]
[400415100,1767530891158,10000.01,0.00016098,2]
[400415101,1767530891186,10000.01,0.00016098,2]
[400415102,1767530891214,10000.01,0.00016098,2]
[400415103,1767530891241,10000.01,0.00016098,2]
[400415104,1767530891268,10000.01,0.00016098,2]
[400415105,1767530891299,10000.01,0.00016098,2]
[400415107,1767530891328,10000.01,0.00016098,2]
[400415117,1767530901638,4538.34168895,0.00016098,2]
[400415128,1767530917032,500.0,0.00016097,2]
[400415129,1767530917145,197.41270386,0.00016097,2]
[400415130,1767530941255,300.0,0.00016097,2]
[400415131,1767530946108,-320960.6036,0.00016098,2]
[400415132,1767530949109,-12449.01546,0.00016098,2]
[400415133,1767530962394,-48447.91406,0.00016098,2]
[400415134,1767530967094,-32043.57302652,0.00016098,2]
[400415135,1767530978682,4084.3335868,0.000328,120]
[400415136,1767531001245,300.0,0.00016097,2]
[400415137,1767531001277,1200.0,0.00016097,2]
[400415138,1767531001344,300.0,0.00016097,2]
[400415145,1767531031646,-630.75339574,0.00016098,2]
[400415148,1767531031658,-688.72,0.00016098,2]
[400415154,1767531031776,-697.33435166,0.00016098,2]
[400415155,1767531031787,-6355.05620418,0.00016098,2]
[400415156,1767531031815,-500.0,0.00016098,2]
[400415157,1767531031873,-343.24244796,0.00016098,2]
[400415159,1767531031891,-7478.00464075,0.00016098,2]
[400415168,1767531037834,-2817.93259271,0.00016098,2]
[400415169,1767531037847,-3228.37645874,0.00016098,2]
[400415170,1767531037859,-3202.97287043,0.00016098,2]
[400415171,1767531037871,-1710.80197602,0.00016098,2]
[400415172,1767531037883,-615.21547425,0.00016098,2]
[400415173,1767531037952,-1141.97294983,0.00016098,2]
[400415217,1767531040053,-458.87313864,0.00016098,2]
[400415218,1767531040065,-3521.92599928,0.00016098,2]
[400415219,1767531040077,-853.42086176,0.00016098,2]
[400415220,1767531040089,-979.27733888,0.00016098,2]
[400415221,1767531040120,-6426.99855979,0.00016098,2]
[400415222,1767531040132,-4571.67156305,0.00016098,2]
[400415223,1767531040223,-452036.71553817,0.00016098,2]
[400415225,1767531040233,-300.0,0.00016101,2]
[400415228,1767531040243,-195.0,0.00016101,2]
[400415229,1767531040253,-358.98979335,0.00016104,2]
[400415230,1767531040263,-2500.0,0.00016104,2]
[400415231,1767531040274,-300.0,0.0001611,2]
[400415233,1767531040287,-195.0,0.00016123,2]
[400415235,1767531040297,-2500.0,0.00016124,2]
[400415237,1767531040307,-2500.0,0.00016124,2]
[400415239,1767531040317,-2500.0,0.00016124,2]
[400415241,1767531040326,-347.95077767,0.00016142,2]
[400415243,1767531040336,-300.0,0.00016148,2]
[400415245,1767531040349,-195.0,0.00016163,2]
[400415247,1767531040358,-300.0,0.00016178,2]
[400415249,1767531040368,-1000.0,0.00016197,2]
[400415251,1767531040378,-500.0,0.00016197,2]
[400415253,1767531040390,-1000.0,0.00016198,2]
[400415255,1767531040400,-500.0,0.00016198,2]
[400415257,1767531040410,-163.1260951,0.00016198,2]
[400415259,1767531040422,-163.1260951,0.00016198,2]
[400415261,1767531040434,-163.1260951,0.00016198,2]
[400415263,1767531040443,-250.0,0.00016198,2]
[400415265,1767531040453,-193.0,0.00016198,2]
[400415267,1767531040463,-340.49049129,0.00016198,2]
[400415269,1767531040473,-2501.66,0.00016295,2]
[400415271,1767531040484,-4538.34168894,0.00016298,2]
[400415273,1767531040494,-660.48,0.000163,2]
[400415276,1767531040509,-2634.12,0.00016302,2]
[400415278,1767531040519,-1500.0,0.00016336,2]
[400415280,1767531040530,-150.0,0.0001635,2]
[400415282,1767531040541,-500.0,0.00016438,2]
[400415284,1767531040551,-500.0,0.00016438,2]
[400415286,1767531040563,-500.0,0.00016438,2]
[400415288,1767531040573,-500.0,0.00016438,2]
[400415290,1767531040583,-500.0,0.00016438,2]
[400415292,1767531040593,-500.0,0.00016438,2]
[400415294,1767531040603,-500.0,0.00016438,2]
[400415296,1767531040613,-500.0,0.00016438,2]
[400415298,1767531040623,-500.0,0.00016438,2]
[400415300,1767531040633,-500.0,0.00016438,2]
[400415302,1767531040643,-500.0,0.00016438,2]
[400415304,1767531040653,-312.14821016,0.00016438,2]
[400415306,1767531040663,-500.0,0.00016438,2]
[400415308,1767531040673,-832.78,0.00016438,2]
[400415310,1767531040684,-1000.0,0.00016456,2]
[400415312,1767531040694,-4538.34168894,0.00016498,2]
[400415314,1767531040703,-1200.0,0.000166,2]
[400415316,1767531040713,-500.0,0.0001664,2]
[400415318,1767531040723,-200.0,0.0001664,2]
[400415320,1767531040733,-207.4,0.0001664,2]
[400415322,1767531040743,-215.0738,0.0001664,2]
[400415324,1767531040753,-223.0315306,0.0001664,2]
[400415326,1767531040762,-231.28369723,0.0001664,2]
[400415327,1767531040771,-239.84119403,0.0001664,2]
[400415330,1767531040782,-248.71531821,0.0001664,2]
[400415332,1767531040792,-257.91778498,0.0001664,2]
[400415333,1767531040803,-267.46074303,0.0001664,2]
[400415335,1767531040813,-277.35679052,0.0001664,2]
[400415337,1767531040824,-15684.75845844,0.00016657,2]
[400415339,1767531040834,-4538.34168894,0.00016699,2]
[400415341,1767531040844,-832.78,0.00016712,2]
[400415343,1767531040853,-165.16,0.00016712,2]
[400415346,1767531040864,-4538.34168894,0.00016899,2]
[400415348,1767531040878,-600.88665179,0.00016914,2]
[400415350,1767531040888,-832.78,0.00016986,2]
[400415352,1767531040900,-300.0,0.00017,2]
[400415354,1767531040911,-151.0,0.00017092,2]
[400415356,1767531040922,-151.0,0.00017094,2]
[400415358,1767531040932,-151.0,0.00017094,2]
[400415360,1767531040942,-425.53462522,0.00017096,2]
[400415362,1767531040952,-4538.34168894,0.00017099,2]
[400415364,1767531040961,-151.0,0.00017101,2]
[400415366,1767531040971,-151.0,0.00017101,2]
[400415368,1767531040981,-151.35,0.00017101,2]
[400415370,1767531040991,-151.0,0.00017101,2]
[400415372,1767531041000,-151.0,0.00017101,2]
[400415374,1767531041010,-151.0,0.00017105,2]
[400415376,1767531041019,-151.0,0.00017105,2]
[400415379,1767531041031,-151.0,0.00017112,2]
[400415380,1767531041041,-151.0,0.00017112,2]